fUSD/lending_fUSD_20240722
["ID","MTS","AMOUNT","RATE_DAILY","PERIOD"]
[332884105,1721626617884,-156.46463978,0.00011161,2]
[332884106,1721626617904,-2790.57613262,0.00011176,2]
[332884107,1721626635403,234.072214,0.00025,120]
[332884109,1721627049657,2000.0,0.00021917,120]
[332884110,1721627049932,2000.0,0.00022739,120]
[332884111,1721627050195,2000.0,0.00023561,120]
[332884112,1721627050474,2000.0,0.00024383,120]
[332884113,1721627194235,431.77,8.886e-05,2]
[332884137,1721627432143,-155.3629808,0.00010771,2]
[332884138,1721627432158,-159.03172548,0.00010771,2]
[332884139,1721627432172,-155.14546976,0.00010771,2]
[332884140,1721627432187,-525.50798852,0.00010771,2]
[332884141,1721627432202,-250.0,0.00010799,2]
[332884142,1721627432216,-199.49,0.00010804,2]
[332884143,1721627432231,-1000.0,0.00010841,2]
[332884144,1721627432245,-250.0,0.00010959,2]
[332884145,1721627432261,-500.0,0.00010959,2]
[332884146,1721627432276,-1000.57799761,0.00011,2]
[332884147,1721627432290,-300.0,0.00011104,2]
[332884148,1721627432304,-219.13115122,0.00011105,2]
[332884149,1721627432318,-1404.11080109,0.00011105,2]
[332884150,1721627432332,-196.75467282,0.00011105,2]
[332884151,1721627432347,-208.36061463,0.00011105,2]
[332884152,1721627432361,-380.50957655,0.00011105,2]
[332884153,1721627432376,-247.90500079,0.00011105,2]
[332884154,1721627432390,-367.38511054,0.00011105,2]
[332884155,1721627432405,-599.94606868,0.00011105,2]
[332884156,1721627432419,-155.0,0.00011105,2]
[332884157,1721627432433,-670.14535169,0.00011105,2]
[332884158,1721627432447,-892.21164266,0.00011105,2]
[332884159,1721627432460,-431.77,0.00011149,2]
[332884160,1721627432474,-759.48731365,0.00011206,2]
[332884161,1721627432488,-420.03,0.000114,2]
[332884163,1721627432502,-570.18,0.000114,2]
[332884165,1721627432515,-3000.0,0.0001141,2]
[332884168,1721627432529,-452.40628403,0.0001142,2]
[332884170,1721627432543,-1000.0,0.000115,2]
[332884173,1721627432557,-342.13318843,0.00011525,2]
[332884175,1721627432570,-155.0,0.00011525,2]
[332884177,1721627432583,-158.41061892,0.00011525,2]
[332884179,1721627432597,-28343.37748121,0.00011526,2]
[332884181,1721627432611,-1341.15251297,0.00011526,2]
[332884182,1721627432633,-20366.42260233,0.00011526,2]
[332884183,1721627432657,-1661.1859856,0.00011526,2]
[332884184,1721627432674,-2407.636,0.00011526,2]
[332884185,1721627432714,-4782.1716711,0.00011526,2]
[332884186,1721627432727,-2839.46076467,0.00011526,2]
[332884187,1721627432743,-1129.34100211,0.00011526,2]
[332884298,1721627438561,-339.65275793,0.00011526,2]
[332884423,1721627439983,-11494.45251529,0.00011526,2]
[332884425,1721627439996,-1927.5656,0.00011569,2]
[332884427,1721627440005,-182.10396,0.00011574,2]
[332884429,1721627440014,-169.417066,0.00011574,2]
[332884431,1721627440023,-180.274303,0.00011574,2]
[332884432,1721627440034,-388.4593847,0.00011662,2]
[332884434,1721627440043,-2675.41188,0.00011669,2]
[332884436,1721627440052,-1357.15118798,0.00011669,2]
[332884439,1721627440072,-1336.13245402,0.00011669,2]
[332884441,1721627440082,-5165.728407,0.00011669,2]
[332884443,1721627440092,-16529.603499,0.00011669,2]
[332884445,1721627440102,-215.170748,0.00011669,2]
[332884447,1721627440111,-702.231668,0.00011669,2]
[332884449,1721627440121,-1119.340671,0.00011669,2]
[332884451,1721627440131,-15186.450936,0.00011669,2]
[332884453,1721627440140,-19947.446876,0.00011669,2]
[332884455,1721627440149,-517.446778,0.00011669,2]
[332884457,1721627440164,-29184.277455,0.00011669,2]
[332884459,1721627440176,-10480.07000967,0.00011669,2]
[332884461,1721627440187,-376.75,0.00011669,2]
[332884463,1721627440198,-500.0,0.00011669,2]
[332884475,1721627440308,-1275.2531778,0.00011669,2]
[332884478,1721627440319,-347.833572,0.00011669,2]
[332884516,1721627440720,-17578.66201253,0.00011669,2]
[332884522,1721627440767,-15802.90704,0.00011669,2]
[332884524,1721627440780,-182.10396,0.00011764,2]
[332884525,1721627440789,-169.417066,0.00011764,2]
[332884527,1721627440799,-180.274303,0.00011764,2]
[332884529,1721627440808,-12799.56052812,0.000118,2]
[332884531,1721627440817,-10000.0,0.000118,2]
[332884533,1721627440827,-1127.90338088,0.000118,2]
[332884535,1721627440837,-87302.26743145,0.000118,2]
[332884537,1721627440848,-162697.73256855,0.000118,2]
[332884539,1721627440857,-187.878714,0.000118,2]
[332884541,1721627440867,-210.04450535,0.000118,2]
[332884543,1721627440877,-1135.35311828,0.000118,2]
[332884544,1721627440886,-500.0,0.00011805,2]
[332884546,1721627440895,-323.632341,0.00011811,2]
[332884548,1721627440907,-323.632341,0.00011811,2]
[332884550,1721627440917,-151.0,0.00011811,2]
[332884552,1721627440927,-151.0,0.00011811,2]
[332884554,1721627440936,-323.632341,0.00011811,2]
[332884556,1721627440945,-323.632341,0.00011811,2]
[332884557,1721627440955,-292.427971,0.00011811,2]
[332884559,1721627440963,-292.427971,0.00011811,2]
[332884561,1721627440973,-292.427971,0.00011811,2]
[332884563,1721627440982,-292.427971,0.00011811,2]
[332884565,1721627440994,-2675.41188,0.00011811,2]
[332884567,1721627441003,-2693.283642,0.00011811,2]
[332884569,1721627441012,-5165.728407,0.00011811,2]
[332884571,1721627441022,-16529.603499,0.00011811,2]
[332884573,1721627441033,-215.170748,0.00011811,2]
[332884575,1721627441043,-702.231668,0.00011811,2]
[332884577,1721627441052,-1119.340671,0.00011811,2]
[332884578,1721627441061,-15186.450936,0.00011811,2]
[332884580,1721627441072,-19947.446876,0.00011811,2]
[332884582,1721627441082,-517.446778,0.00011811,2]
[332884584,1721627441092,-29184.277455,0.00011811,2]
[332884586,1721627441102,-30558.568772,0.00011811,2]
[332884588,1721627441111,-15802.90704,0.00011811,2]
[332884590,1721627441121,-1500.0,0.00011829,2]
[332884592,1721627441130,-500.0,0.0001184,2]
[332884594,1721627441139,-284.0802,0.0001184,2]
[332884596,1721627441148,-287.1763,0.0001184,2]
[332884598,1721627441159,-1829.0,0.00011853,2]
[332884600,1721627441168,-1254.0,0.00011853,2]
[332884601,1721627441177,-1663.0,0.00011853,2]
[332884603,1721627441186,-810.0,0.00011853,2]
[332884605,1721627441195,-450.0,0.00011853,2]
[332884607,1721627441204,-445.0,0.00011853,2]
[332884609,1721627441214,-150.0,0.00011853,2]
[332884611,1721627441223,-620.0,0.00011853,2]
[332884613,1721627441232,-150.0,0.00011853,2]
[332884615,1721627441241,-2382.0,0.00011853,2]
[332884617,1721627441251,-1994.0,0.00011853,2]
[332884619,1721627441261,-550.0,0.00011853,2]
[332884621,1721627441270,-3283.0,0.00011853,2]
[332884623,1721627441280,-345.869,0.00011853,2]
[332884625,1721627441288,-30.74703826,0.00011853,2]
[332884627,1721627441300,-180.25296174,0.00011853,2]
[332884629,1721627441310,-550.30637608,0.00011853,2]
[332884632,1721627441325,-521.69362392,0.00011853,2]
[332884634,1721627441334,-150.561,0.00011853,2]
[332884636,1721627441343,-150.0,0.00011853,2]
[332884638,1721627441352,-516.98447335,0.00011871,2]
[332884640,1721627441361,-2198.49964411,0.0001188,2]
[332884656,1721627441516,-284.78775529,0.0001188,2]
[332884659,1721627441527,-398.62710039,0.0001188,2]
[332884661,1721627441542,-650.0,0.0001188,2]
[332884663,1721627441553,-27050.48714937,0.0001188,2]
[332884665,1721627441562,-151.0,0.0001189,2]
[332884667,1721627441571,-394.09,0.0001189,2]
[332884669,1721627441580,-778.73721428,0.00011899,2]
[332884671,1721627441589,-323.632341,0.00011899,2]
[332884673,1721627441599,-323.632341,0.00011899,2]
[332884675,1721627441608,-145.96645103,0.00011899,2]
[332884825,1721627442828,-342.13318843,0.00011384,2]
[332884828,1721627442838,-146.46151997,0.00011899,2]
[332884831,1721627442847,-0.1830781,0.00011899,2]
[332884843,1721627442912,-292.2448929,0.00011899,2]
[332884845,1721627442922,-151.04587115,0.00011899,2]
[332884847,1721627442932,-151.60556852,0.000119,2]
[332884849,1721627442943,-368.39443148,0.000119,2]
[332884851,1721627442953,-168.76973957,0.000119,2]
[332884853,1721627442964,-1728.91551635,0.000119,2]
[332884859,1721627443017,-4769.26480063,0.000119,2]
[332884863,1721627443038,-2759.5004898,0.000119,2]
[332884865,1721627443049,-2925.0,0.000119,2]
[332884909,1721627443472,-56128.64415127,0.000119,2]
[332884913,1721627443504,-834.31289952,0.000119,2]
[332884915,1721627443516,-2279.0,0.000119,2]
[332884927,1721627443618,-1299.30093907,0.000119,2]
[332884930,1721627443630,-5864.05419378,0.000119,2]
[332884932,1721627443642,-1888.0000005,0.000119,2]
[332885049,1721627445917,-829.33490747,0.000119,2]
[332885050,1721627446076,-1019.50204407,0.000119,2]
[332885051,1721627446087,-3075.0,0.000119,2]
[332885052,1721627446099,-929.49487417,0.000119,2]
[332885053,1721627446110,-26977.16239601,0.000119,2]
[332885054,1721627446120,-310.0765343,0.000119,2]
[332885055,1721627446132,-298.31787138,0.000119,2]
[332885056,1721627446144,-18687.90820847,0.000119,2]
[332885057,1721627446244,-592.714,0.000119,2]
[332885058,1721627446256,-456.95008335,0.000119,2]
[332885059,1721627446268,-40505.03041319,0.000119,2]
[332885060,1721627446280,-458.1408387,0.000119,2]
[332885061,1721627446291,-6530.56508698,0.000119,2]
[332885062,1721627446303,-42292.43750543,0.000119,2]
[332885063,1721627446315,-5403.9,0.000119,2]
[332885064,1721627446326,-519.94092033,0.000119,2]
[332885065,1721627446338,-562.5,0.000119,2]
[332885066,1721627446350,-305.0,0.000119,2]
[332885067,1721627446387,-3806.86725448,0.000119,2]
[332885068,1721627446398,-442.00189353,0.000119,2]
[332885069,1721627446411,-400.57,0.000119,2]
[332885070,1721627446432,-1346.51356479,0.000119,2]
[332885071,1721627446444,-491.51006788,0.000119,2]
[332885072,1721627446467,-1626.2394824,0.000119,2]
[332885073,1721627446479,-2251.39048209,0.000119,2]
[332885074,1721627446490,-27493.91517875,0.000119,2]
[332885075,1721627446502,-852.18109769,0.000119,2]
[332885076,1721627446512,-29000.0,0.000119,2]
[332885077,1721627446527,-4776.45311596,0.000119,2]
[332885078,1721627446539,-6545.7621731,0.000119,2]
[332885079,1721627446550,-27062.23784252,0.000119,2]
[332885080,1721627446561,-1405.51915643,0.000119,2]
[332885082,1721627896725,535.39,8.637e-05,2]
[332885083,1721627912822,2000.0,0.00021917,120]
[332885084,1721627913094,2000.0,0.00022739,120]
[332885085,1721627913345,2000.0,0.00023561,120]
[332885086,1721627913607,2000.0,0.00024383,120]
[332885088,1721628445784,508.62,8.588e-05,2]
[332885089,1721628539395,140958.53588148,8.588e-05,2]
[332885100,1721628632850,-3069.57775378,0.0001031,2]
[332885101,1721628632860,-8.98156667,0.00010334,2]
[332885102,1721628632872,-241.01843333,0.00010334,2]
[332885103,1721628632881,-160.42247705,0.0001041,2]
[332885104,1721628632891,-750.93154305,0.0001041,2]
[332885105,1721628632910,-35.2021616,0.0001041,2]
[332885106,1721628632919,-293.68657096,0.0001041,2]
[332885107,1721628632928,-849.53568758,0.00010515,2]
[332885108,1721628632942,-200.5,0.00010517,2]
[332885109,1721628632951,-300.0,0.00010544,2]
[332885110,1721628632960,-8588.3220137,0.00010545,2]
[332885111,1721628633044,-708.08516281,0.00010545,2]
[332885112,1721628633086,-1336.23099749,0.00010545,2]
[332885113,1721628633127,-13267.361826,0.00010545,2]
[332885114,1721628633138,-800.0,0.00010555,2]
[332885115,1721628633147,-162.33,0.00010564,2]
[332885116,1721628633157,-250.0,0.00010568,2]
[332885117,1721628633166,-199.52,0.00010615,2]
[332885119,1721628633175,-499.99,0.00010615,2]
[332885121,1721628633185,-499.99,0.00010632,2]
[332885123,1721628633194,-200.0,0.00010732,2]
[332885125,1721628633203,-508.62,0.00010852,2]
[332885127,1721628633212,-200.0,0.000109,3]
[332885129,1721628633222,-299.99,0.00010901,2]
[332885131,1721628633231,-250.0,0.00010959,2]
[332885133,1721628633240,-500.0,0.00011,4]
[332885135,1721628633249,-800.0,0.000111,4]
[332885139,1721628633258,-790.03749529,0.00011105,2]
[332885140,1721628633708,-265.11199613,0.00011105,2]
[332885141,1721628633718,-155.0,0.00011105,2]
[332885142,1721628633727,-504.82499315,0.00011105,2]
[332885143,1721628633737,-25291.99505056,0.00011186,2]
[332885144,1721628633746,-1100.0,0.000112,4]
[332885145,1721628633756,-10000.0,0.00011295,2]
[332885146,1721628633765,-1400.0,0.000113,4]
[332885147,1721628633775,-156.16239187,0.00011324,2]
[332885148,1721628633784,-88.12669316,0.00011324,2]
[332885158,1721628638622,-10000.0,0.00011296,2]
[332885160,1721628638632,-325.90149873,0.00011324,2]
[332885162,1721628638642,-414.02819189,0.00011324,2]
[332885164,1721628638651,-380.81147695,0.00011384,2]
[332885166,1721628638662,-1165.009816,0.00011384,2]
[332885168,1721628638671,-200.0,0.000114,4]
[332885170,1721628638681,-7618.42558345,0.00011499,2]
[332885172,1721628638690,-5000.0,0.00011499,2]
[332885174,1721628638699,-5000.0,0.00011499,2]
[332885175,1721628638709,-895.82293298,0.00011499,2]
[332885178,1721628638720,-290.95999964,0.00011499,2]
[332885179,1721628638743,-1309.36905882,0.00011499,2]
[332885180,1721628638755,-1005.15716993,0.00011499,2]
[332885181,1721628638770,-701.89106013,0.00011499,2]
[332885182,1721628638781,-796.7997785,0.00011499,2]
[332885183,1721628638791,-2413.14517104,0.00011499,2]
[332885184,1721628638802,-720.62291816,0.00011499,2]
[332885185,1721628638818,-726.22550044,0.00011499,2]
[332885186,1721628638829,-1140.00641036,0.00011499,2]
[332885187,1721628638839,-200.0,0.000115,4]
[332885188,1721628638850,-155.0,0.00011525,2]
[332885189,1721628638861,-1165.009816,0.00011526,2]
[332885190,1721628638870,-231.54765948,0.00011559,2]
[332885191,1721628638880,-2137.17677004,0.00011559,2]
[332885192,1721628638891,-2400.0,0.00011559,2]
[332885193,1721628638903,-689.05821815,0.00011559,2]
[332885194,1721628638914,-1315.94695395,0.00011559,2]
[332885196,1721628640195,-31808.81805786,0.00011559,2]
[332885197,1721628640204,-616.304,0.00011559,2]
[332885198,1721628640214,-343.7444,0.00011569,2]
[332885199,1721628640224,-6602.4157,0.00011569,2]
[332885200,1721628640233,-200.0,0.000116,4]
[332885201,1721628640244,-194.2296924,0.00011662,2]
[332885202,1721628640253,-1165.009816,0.00011669,2]
[332885203,1721628640263,-220.77,0.00011699,3]
[332885204,1721628640273,-200.0,0.000117,4]
[332885205,1721628640282,-229.296,0.00011752,2]
[332885206,1721628640292,-4182.0,0.00011771,2]
[332885207,1721628640302,-3000.0,0.0001178,2]
[332885208,1721628640314,-182.02421399,0.0001179,2]
[332885209,1721628640323,-673.1983447,0.0001179,2]
[332885210,1721628640332,-832.62816945,0.000118,2]
[332885211,1721628640342,-832.62816944,0.000118,2]
[332885212,1721628640354,-10000.0,0.000118,2]
[332885213,1721628640364,-1000.0,0.000118,2]
[332885214,1721628640373,-150.0,0.000118,2]
[332885215,1721628640383,-250000.0,0.000118,2]
[332885216,1721628640392,-1190.0,0.000118,4]
[332885217,1721628640402,-500.0,0.00011805,2]
[332885218,1721628640412,-1165.009816,0.00011811,2]
[332885219,1721628640421,-200.5,0.00011831,2]
[332885220,1721628640430,-800.0,0.00011875,2]
[332885221,1721628640440,-278.67576322,0.00011887,2]
[332885222,1721628640450,-571.0,0.0001189,2]
[332885223,1721628640459,-1208555.4828277,0.0001189,2]
[332885224,1721628640469,-1252.0,0.0001189,2]
[332885225,1721628640479,-1661.0,0.0001189,2]
[332885226,1721628640488,-1273.714,0.0001189,2]
[332885227,1721628640499,-620.0,0.0001189,2]
[332885228,1721628640507,-445.0,0.0001189,2]
[332885229,1721628640516,-450.105,0.0001189,2]
[332885230,1721628640526,-810.0,0.0001189,2]
[332885231,1721628640535,-1488.252,0.0001189,2]
[332885232,1721628640545,-548.0,0.0001189,2]
[332885233,1721628640555,-3283.0,0.0001189,2]
[332885234,1721628640565,-1994.0,0.0001189,2]
[332885235,1721628640574,-30697.0805796,0.00011897,2]
[332885236,1721628640584,-389.36860714,0.00011899,2]
[332885237,1721628640593,-6836809.48258209,0.000119,2]
[332885238,1721628640604,-673.67079095,0.000119,2]
[332885239,1721628640615,-328.47396994,0.000119,2]
[332885240,1721628640626,-7929.398875,0.000119,2]
[332885241,1721628640645,-1060.86500547,0.000119,2]
[332885242,1721628640666,-5223.50392506,0.000119,2]
[332885258,1721628643240,-804.622,0.0001179,2]
[332885259,1721628643250,-9602.65228,0.000119,2]
[332885263,1721628646136,-386.34527195,0.00011296,2]
[332885264,1721628646180,-3567.19216456,0.00011296,2]
[332885265,1721628646190,-437.4809283,0.000119,2]
[332885268,1721628829110,2000.0,0.00021917,120]
[332885269,1721628829392,2000.0,0.00022739,120]
[332885270,1721628829663,2000.0,0.00023561,120]
[332885271,1721629036805,490.39,8.993e-05,2]
[332885273,1721629583531,465.87,8.806e-05,2]
[332885282,1721629832453,-199.8624425,0.0001,2]
[332885283,1721629832464,-606.91354387,0.00010208,2]
[332885284,1721629832492,-247.08645613,0.00010208,2]
[332885285,1721629832503,-2.91354387,0.00010209,2]
[332885286,1721629832516,-562.4996314,0.00010209,2]
[332885287,1721629832535,-2114.71810621,0.00010209,2]
[332885288,1721629832549,-939.12448644,0.00010209,2]
[332885289,1721629832572,-2000.0,0.00010209,2]
[332885292,1721629838274,-302.14986597,0.00010209,2]
[332885293,1721629838309,-902.13946611,0.00010209,2]
[332885294,1721629838318,-155.34888567,0.0001041,2]
[332885295,1721629838328,-196.61750891,0.0001041,2]
[332885296,1721629838337,-155.26980655,0.00010674,2]
[332885297,1721629838347,-217.29679371,0.00010674,2]
[332885298,1721629838356,-368.04745866,0.00010674,2]
[332885299,1721629838365,-300.0,0.00010772,2]
[332885300,1721629838374,-1076.46819133,0.00010773,2]
[332885301,1721629838545,-1866.24812491,0.00010773,2]
[332885302,1721629838559,-2055.90368376,0.00010773,2]
[332885303,1721629838568,-1000.0,0.00010774,2]
[332885304,1721629838581,-250.0,0.00010783,2]
[332885305,1721629838590,-250.0,0.00010835,2]
[332885306,1721629838600,-1268.03391626,0.000109,2]
[332885307,1721629838609,-180.49475677,0.000109,2]
[332885308,1721629838619,-268.86353542,0.000109,2]
[332885309,1721629838628,-1469.83974258,0.000109,2]
[332885310,1721629838638,-150.99,0.000109,2]
[332885311,1721629838648,-279.7,0.00010949,2]
[332885312,1721629838657,-285.48,0.00010959,2]
[332885313,1721629838667,-499.99,0.00010959,2]
[332885314,1721629838676,-250.0,0.00010959,2]
[332885315,1721629838686,-465.87,0.0001107,2]
[332885316,1721629838695,-13242.21333354,0.00011105,2]
[332885317,1721629838705,-480.37551513,0.00011105,2]
[332885319,1721629838715,-293.27577906,0.00011105,2]
[332885321,1721629838724,-365.15560541,0.00011105,2]
[332885323,1721629838733,-264.13822184,0.00011105,2]
[332885325,1721629838742,-236.03729267,0.00011161,2]
[332885327,1721629838751,-155.0,0.00011161,2]
[332885329,1721629838760,-1404.11080109,0.00011186,2]
[332885330,1721629838770,-178.765485,0.00011384,2]
[332885332,1721629838779,-194.2296924,0.00011662,2]
[332885334,1721629838791,-1905.09168952,0.00011663,2]
[332885337,1721629838802,-5179.78453988,0.00011663,2]
[332885339,1721629838813,-541.830076,0.00011663,2]
[332885342,1721629838828,-374.94082365,0.00011663,2]
[332885498,1721629840355,-14140.35287095,0.00011663,2]
[332885500,1721629840364,-182.68535503,0.0001177,2]
[332885502,1721629840374,-3000.0,0.0001178,2]
[332885504,1721629840384,-311.5351,0.00011797,2]
[332885506,1721629840393,-674.04080023,0.000118,2]
[332885508,1721629840403,-10000.0,0.000118,2]
[332885509,1721629840412,-1000.0,0.000118,2]
[332885511,1721629840421,-1465.94207668,0.000118,2]
[332885513,1721629840430,-21956.1967582,0.000118,2]
[332885515,1721629840439,-450.254398,0.000118,2]
[332885517,1721629840449,-282.60933554,0.000118,2]
[332885519,1721629840458,-500.0,0.00011805,2]
[332885521,1721629840467,-220.48,0.00011808,2]
[332885523,1721629840477,-420.0,0.0001184,2]
[332885525,1721629840486,-7829.67118702,0.0001185,2]
[332885527,1721629840497,-4547.08758781,0.0001185,2]
[332885529,1721629840508,-422.80175329,0.0001185,2]
[332885531,1721629840518,-1303.59885179,0.0001187,2]
[332885533,1721629840528,-601.48965843,0.0001187,2]
[332885535,1721629840537,-1000.0,0.0001187,2]
[332885537,1721629840546,-276.65901445,0.0001187,2]
[332885539,1721629840557,-223.34098555,0.0001187,2]
[332885541,1721629840567,-442.76858555,0.0001189,2]
[332885544,1721629840582,-583.2607277,0.0001189,2]
[332885592,1721629842474,-802.05406569,0.0001189,2]
[332885593,1721629842486,-165.91662106,0.0001189,2]
[332885594,1721629842495,-329.63727759,0.0001189,2]
[332885595,1721629842520,-2925.86772241,0.0001189,2]
[332885596,1721629842529,-16990.884,0.0001189,2]
[332885597,1721629842541,-445.0,0.0001189,2]
[332885598,1721629842551,-450.0,0.0001189,2]
[332885599,1721629842561,-740.246,0.0001189,2]
[332885600,1721629842571,-620.0,0.0001189,2]
[332885601,1721629842581,-759.48731365,0.00011896,2]
[332885602,1721629842591,-1650.1450446,0.00011897,2]
[332885603,1721629842601,-30963.36991938,0.00011897,2]
[332885604,1721629842613,-1751.0,0.00011897,2]
[332885605,1721629842624,-1197.8095201,0.00011897,2]
[332885606,1721629842637,-6773.5,0.00011897,2]
[332885607,1721629842655,-1226.66149548,0.00011897,2]
[332885608,1721629842666,-294.675,0.00011897,2]
[332885609,1721629842678,-1501.21065046,0.00011897,2]
[332885610,1721629842690,-1282.73626016,0.00011897,2]
[332885611,1721629842701,-6584.77830081,0.00011897,2]
[332885619,1721629843402,-2790.39273197,0.00011897,2]
[332885620,1721629843437,-2909.23436244,0.00011897,2]
[332885621,1721629843447,-827.1331392,0.00011897,2]
[332885622,1721629843457,-950.031277,0.00011897,2]
[332885623,1721629843466,-9675.7961842,0.00011897,2]
[332885624,1721629843476,-1768.42028246,0.00011897,2]
[332885625,1721629843487,-513.18500005,0.00011897,2]
[332885626,1721629843499,-1395.4297,0.00011897,2]
[332885627,1721629843702,-373.97573199,0.00011897,2]
[332885629,1721629843713,-1122.02426801,0.00011897,2]
[332885649,1721629846445,-398.94646363,0.00011897,2]
[332885650,1721629846455,-194.68430357,0.00011899,2]
[332885651,1721629846464,-385.38435484,0.000119,2]
[332885654,1721630160872,13585.42713118,0.00024,60]
[332885665,1721630707760,419.28,8.871e-05,2]
[332885668,1721630768522,1645.8301354,8.871e-05,2]
[332885671,1721630874415,356.0,0.00025,120]
[332885678,1721630997379,1329.0,0.00025,120]
[332885700,1721631033563,-4700.0,9.588e-05,2]
[332885701,1721631033574,-4800.0,9.588e-05,2]
[332885702,1721631033584,-339.97999288,9.588e-05,2]
[332885703,1721631033699,-160.02000712,9.588e-05,2]
[332885704,1721631033709,-4700.0,0.0001041,2]
[332885705,1721631033719,-4800.0,0.0001041,2]
[332885706,1721631033729,-223.76,0.00010594,2]
[332885707,1721631033739,-181.68,0.0001071,2]
[332885708,1721631033749,-527.90970893,0.00010753,2]
[332885709,1721631033759,-1000.0,0.00010819,2]
[332885710,1721631033770,-250.0,0.00010886,2]
[332885711,1721631033779,-176.24,0.00010926,2]
[332885712,1721631033788,-250.0,0.00010959,2]
[332885713,1721631033798,-1053.52,0.00010959,2]
[332885714,1721631033811,-150.0,0.00010959,2]
[332885715,1721631033820,-150.0,0.00010986,2]
[332885716,1721631033830,-150.0,0.00010999,2]
[332885717,1721631033840,-1000.0,0.00011,11]
[332885718,1721631033849,-897.755,0.00011005,2]
[332885719,1721631033859,-574.18,0.00011104,2]
[332885720,1721631033868,-236.03729267,0.00011105,2]
[332885721,1721631033878,-1339.99046338,0.00011105,2]
[332885722,1721631033890,-431.9273718,0.00011105,2]
[332885723,1721631033900,-155.0,0.00011105,2]
[332885724,1721631033917,-1267.51325796,0.00011105,2]
[332885725,1721631033935,-670.14535169,0.00011105,2]
[332885726,1721631033957,-155.0,0.00011105,2]
[332885727,1721631033977,-270.14625122,0.00011105,2]
[332885728,1721631033998,-419.28,0.00011134,2]
[332885730,1721631034009,-25291.99505056,0.00011186,2]
[332885732,1721631034020,-599.94606868,0.00011186,2]
[332885734,1721631034036,-342.13318843,0.00011186,2]
[332885736,1721631034046,-759.48731365,0.00011206,2]
[332885738,1721631034059,-189.74,0.00011206,2]
[332885740,1721631034069,-4700.0,0.00011232,2]
[332885742,1721631034079,-4800.0,0.00011232,2]
[332885744,1721631034087,-500.0,0.00011232,2]
[332885746,1721631034100,-3000.0,0.0001178,2]
[332885748,1721631034111,-500.0,0.0001178,2]
[332885749,1721631034120,-5680.59367391,0.000118,2]
[332885750,1721631034132,-2472.60570829,0.000118,2]
[332885751,1721631034164,-1846.8006178,0.000118,2]
[332885752,1721631034174,-1417.71879455,0.000118,2]
[332885753,1721631034186,-3168.35,0.000118,2]
[332885754,1721631034198,-1601.38575,0.000118,2]
[332885830,1721631039790,-257.23252039,0.00011322,2]
[332885832,1721631039800,-41.18476329,0.000118,2]
[332885834,1721631039816,-2661.3511365,0.000118,2]
[332885837,1721631039827,-4637.43673865,0.000118,2]
[332885839,1721631039843,-561.8205843,0.000118,2]
[332885841,1721631039854,-5850.67191672,0.000118,2]
[332885843,1721631039863,-500.0,0.00011805,2]
[332885845,1721631039872,-159.28475358,0.0001188,2]
[332885847,1721631039882,-1034.54635671,0.0001189,2]
[332885849,1721631039893,-6430.39699736,0.0001189,2]
[332885851,1721631039907,-1624.86997245,0.0001189,2]
[332885854,1721631039926,-451.95508626,0.0001189,2]
[332885856,1721631039937,-23500.03587207,0.0001189,2]
[332885858,1721631039948,-272.55984996,0.0001189,2]
[332885860,1721631039959,-9992.04484842,0.0001189,2]
[332885862,1721631039970,-6904.82972179,0.0001189,2]
[332885865,1721631039985,-1825.11559147,0.0001189,2]
[332885942,1721631040445,-323.689567,0.00011543,2]
[332885946,1721631040455,-202.760433,0.0001189,2]
[332886003,1721631040779,-752.82304076,0.0001189,2]
[332886011,1721631040862,-683.24530187,0.0001189,2]
[332886019,1721631040940,-2672.077718,0.0001189,2]
[332886214,1721631043513,-250.0,0.00011049,2]
[332886217,1721631043523,-84071.41118994,0.0001189,2]